fUSD/lending_fUSD_20240425
["ID","MTS","AMOUNT","RATE_DAILY","PERIOD"]
[323545158,1714080655468,-1572.19,0.00011506,2]
[323545159,1714080655477,-2319.64,0.00011506,2]
[323545160,1714080655487,-1249.15,0.00011506,2]
[323545161,1714080655496,-1138.02,0.00011506,2]
[323545162,1714080655506,-500.0,0.00011506,2]
[323545163,1714080655517,-500.0,0.00011506,2]
[323545164,1714080655526,-515.7999425,0.00011506,2]
[323545165,1714080655535,-500.0,0.00011506,2]
[323545166,1714080655544,-1373.13,0.00011506,2]
[323545167,1714080655554,-646.82,0.00011506,2]
[323545168,1714080655564,-4659.58,0.00011506,2]
[323545169,1714080655573,-500.0,0.00011506,2]
[323545170,1714080655582,-886.17,0.00011506,2]
[323545171,1714080655593,-1226.99,0.00011506,2]
[323545172,1714080655602,-1134.99,0.00011506,2]
[323545173,1714080655611,-9497.36,0.00011506,2]
[323545174,1714080655620,-523.69,0.00011506,2]
[323545175,1714080655630,-500.0,0.00011506,2]
[323545176,1714080655640,-500.0,0.00011506,2]
[323545177,1714080655651,-500.0,0.00011506,2]
[323545178,1714080655661,-809.32,0.00011506,2]
[323545179,1714080655672,-1106.96,0.00011506,2]
[323545180,1714080655681,-1314.86,0.00011506,2]
[323545181,1714080655690,-500.0,0.00011506,2]
[323545182,1714080655699,-834.43,0.00011506,2]
[323545183,1714080655708,-704.8,0.00011506,2]
[323545184,1714080655717,-500.0,0.00011506,2]
[323545185,1714080655726,-1189.55,0.00011506,2]
[323545186,1714080655737,-500.0,0.00011506,2]
[323545187,1714080655746,-500.0,0.00011506,2]
[323545188,1714080655756,-1383.71,0.00011506,2]
[323545189,1714080655766,-469.57,0.00011506,2]
[323545190,1714080655775,-606.68740757,0.00011506,2]
[323545191,1714080655785,-1756.87,0.00011506,2]
[323545192,1714080655794,-1264.18,0.00011506,2]
[323545193,1714080655803,-4390.51,0.00011506,2]
[323545194,1714080655812,-674.2,0.00011506,2]
[323545195,1714080655820,-500.0,0.00011506,2]
[323545196,1714080655829,-500.0,0.00011506,2]
[323545197,1714080655839,-500.0,0.00011506,2]
[323545198,1714080655848,-500.0,0.00011506,2]
[323545199,1714080655859,-500.0,0.00011506,2]
[323545200,1714080655869,-2386.26,0.00011506,2]
[323545201,1714080655878,-500.0,0.00011506,2]
[323545202,1714080655887,-1647.79,0.00011506,2]
[323545203,1714080655896,-500.0,0.00011506,2]
[323545204,1714080655906,-2185.12,0.00011506,2]
[323545205,1714080655915,-776.59,0.00011506,2]
[323545206,1714080655924,-500.0,0.00011506,2]
[323545207,1714080655933,-500.0,0.00011506,2]
[323545208,1714080655942,-304.93,0.00011506,2]
[323545209,1714080655953,-500.0,0.00011506,2]
[323545210,1714080655963,-500.0,0.00011506,2]
[323545211,1714080655972,-1418.4,0.00011506,2]
[323545212,1714080655982,-12524.16,0.00011506,2]
[323545213,1714080655991,-443.08481407,0.00011506,2]
[323545214,1714080656001,-1640.7,0.00011506,2]
[323545215,1714080656011,-834.26,0.00011506,2]
[323545216,1714080656022,-500.0,0.00011506,2]
[323545217,1714080656031,-500.0,0.00011506,2]
[323545218,1714080656043,-500.0,0.00011506,2]
[323545219,1714080656055,-500.0,0.00011506,2]
[323545220,1714080656064,-500.0,0.00011506,2]
[323545221,1714080656074,-2149.82,0.00011506,2]
[323545222,1714080656084,-500.0,0.00011506,2]
[323545223,1714080656094,-500.0,0.00011506,2]
[323545224,1714080656103,-2225.49,0.00011506,2]
[323545225,1714080656113,-500.0,0.00011506,2]
[323545226,1714080656122,-3310.47,0.00011506,2]
[323545227,1714080656131,-500.0,0.00011506,2]
[323545228,1714080656141,-736.51,0.00011506,2]
[323545229,1714080656151,-1159.51,0.00011506,2]
[323545230,1714080656160,-500.0,0.00011506,2]
[323545231,1714080656169,-500.0,0.00011506,2]
[323545232,1714080656178,-500.0,0.00011506,2]
[323545233,1714080656188,-2668.16,0.00011506,2]
[323545234,1714080656197,-746.14,0.00011506,2]
[323545235,1714080656207,-2716.71,0.00011506,2]
[323545236,1714080656216,-500.0,0.00011506,2]
[323545237,1714080656225,-500.0,0.00011506,2]
[323545238,1714080656234,-500.0,0.00011506,2]
[323545239,1714080656243,-500.0,0.00011506,2]
[323545240,1714080656252,-630.93,0.00011506,2]
[323545241,1714080656262,-500.0,0.00011506,2]
[323545242,1714080656271,-500.0,0.00011506,2]
[323545243,1714080656281,-1366.68,0.00011506,2]
[323545244,1714080656290,-1628.53,0.00011506,2]
[323545245,1714080656300,-657.7,0.00011506,2]
[323545246,1714080656309,-2570.45,0.00011506,2]
[323545247,1714080656318,-500.0,0.00011506,2]
[323545248,1714080656329,-1656.95,0.00011506,2]
[323545249,1714080656338,-500.0,0.00011506,2]
[323545250,1714080656348,-500.0,0.00011506,2]
[323545251,1714080656358,-763.84,0.00011506,2]
[323545252,1714080656367,-936.27,0.00011506,2]
[323545253,1714080656376,-937.43,0.00011506,2]
[323545254,1714080656386,-500.0,0.00011506,2]
[323545255,1714080656395,-19843.31,0.00011506,2]
[323545256,1714080656405,-500.0,0.00011506,2]
[323545257,1714080656416,-757.44,0.00011506,2]
[323545258,1714080656425,-2946.07,0.00011506,2]
[323545259,1714080656435,-3824.28,0.00011506,2]
[323545260,1714080656445,-8720.88,0.00011506,2]
[323545261,1714080656455,-910.21,0.00011506,2]
[323545262,1714080656465,-500.0,0.00011506,2]
[323545263,1714080656475,-712.96,0.00011506,2]
[323545264,1714080656484,-500.0,0.00011506,2]
[323545265,1714080656494,-3945.49,0.00011506,2]
[323545266,1714080656504,-500.0,0.00011506,2]
[323545267,1714080656515,-172.00671058,0.00011506,2]
[323545268,1714080656525,-710.77,0.00011506,2]
[323545269,1714080656535,-500.0,0.00011506,2]
[323545270,1714080656545,-1258.76,0.00011506,2]
[323545271,1714080656555,-1246.27,0.00011506,2]
[323545272,1714080656566,-500.0,0.00011506,2]
[323545273,1714080656574,-1283.91,0.00011506,2]
[323545274,1714080656584,-902.68,0.00011506,2]
[323545275,1714080656596,-500.0,0.00011506,2]
[323545276,1714080656606,-1335.71,0.00011506,2]
[323545277,1714080656616,-2358.04,0.00011506,2]
[323545278,1714080656626,-2067.13,0.00011506,2]
[323545279,1714080656636,-5704.72,0.00011506,2]
[323545280,1714080656646,-500.0,0.00011506,2]
[323545281,1714080656655,-500.0,0.00011506,2]
[323545282,1714080656665,-334.31,0.00011506,2]
[323545283,1714080656674,-500.0,0.00011506,2]
[323545284,1714080656684,-500.0,0.00011506,2]
[323545285,1714080656693,-602.93710952,0.00011506,2]
[323545286,1714080656702,-708.39,0.00011506,2]
[323545287,1714080656712,-620.87,0.00011506,2]
[323545288,1714080656721,-1042.68,0.00011506,2]
[323545289,1714080656731,-1148.81,0.00011506,2]
[323545290,1714080656740,-918.53,0.00011506,2]
[323545291,1714080656750,-864.23,0.00011506,2]
[323545292,1714080656760,-500.0,0.00011506,2]
[323545293,1714080656770,-508.19,0.00011506,2]
[323545294,1714080656780,-1110.31,0.00011506,2]
[323545295,1714080656790,-895.22,0.00011506,2]
[323545296,1714080656801,-1782.03,0.00011506,2]
[323545297,1714080656811,-1268.69,0.00011506,2]
[323545298,1714080656821,-3409.74,0.00011506,2]
[323545299,1714080656832,-500.0,0.00011506,2]
[323545300,1714080656842,-5291.88,0.00011506,2]
[323545301,1714080656854,-4048.42,0.00011506,2]
[323545302,1714080656864,-500.0,0.00011506,2]
[323545303,1714080656874,-1248.38,0.00011506,2]
[323545304,1714080656885,-924.37,0.00011506,2]
[323545305,1714080656896,-1387.42,0.00011506,2]
[323545306,1714080656907,-848.96,0.00011506,2]
[323545307,1714080656918,-4000.28,0.00011506,2]
[323545308,1714080656929,-500.0,0.00011506,2]
[323545309,1714080656940,-532.83,0.00011506,2]
[323545310,1714080656951,-500.0,0.00011506,2]
[323545311,1714080656963,-1399.75,0.00011506,2]
[323545312,1714080656974,-680.73,0.00011506,2]
[323545313,1714080656985,-719.22,0.00011506,2]
[323545314,1714080657000,-1327.22,0.00011506,2]
[323545315,1714080657011,-500.0,0.00011506,2]
[323545316,1714080657022,-500.0,0.00011506,2]
[323545317,1714080657034,-1935.44,0.00011506,2]
[323545318,1714080657046,-653.71,0.00011506,2]
[323545319,1714080657056,-500.0,0.00011506,2]
[323545320,1714080657066,-486.09,0.00011506,2]
[323545321,1714080657076,-2632.01,0.00011506,2]
[323545322,1714080657086,-500.0,0.00011506,2]
[323545323,1714080657096,-500.0,0.00011506,2]
[323545324,1714080657108,-2791.77,0.00011506,2]
[323545325,1714080657118,-500.0,0.00011506,2]
[323545326,1714080657127,-616.15,0.00011506,2]
[323545327,1714080657138,-637.02,0.00011506,2]
[323545328,1714080657149,-2007.13,0.00011506,2]
[323545329,1714080657161,-500.0,0.00011506,2]
[323545330,1714080657170,-760.56,0.00011506,2]
[323545331,1714080657180,-1507.65,0.00011506,2]
[323545332,1714080657189,-1029.34,0.00011506,2]
[323545333,1714080657199,-500.0,0.00011506,2]
[323545334,1714080657209,-500.0,0.00011506,2]
[323545335,1714080657218,-500.0,0.00011506,2]
[323545336,1714080657228,-500.35,0.00011506,2]
[323545337,1714080657239,-500.0,0.00011506,2]
[323545338,1714080657249,-500.0,0.00011506,2]
[323545339,1714080657258,-500.0,0.00011506,2]
[323545340,1714080657269,-500.0,0.00011506,2]
[323545341,1714080657280,-6288.41,0.00011506,2]
[323545342,1714080657290,-500.0,0.00011506,2]
[323545343,1714080657301,-3879.23,0.00011506,2]
[323545344,1714080657312,-500.0,0.00011506,2]
[323545345,1714080657322,-276.00147888,0.00011506,2]
[323545346,1714080657332,-500.0,0.00011506,2]
[323545347,1714080657341,-2519.04,0.00011506,2]
[323545348,1714080657352,-864.19,0.00011506,2]
[323545349,1714080657362,-856.53,0.00011506,2]
[323545350,1714080657372,-500.0,0.00011506,2]
[323545351,1714080657382,-3702.09,0.00011506,2]
[323545352,1714080657391,-630.95,0.00011506,2]
[323545353,1714080657401,-500.0,0.00011506,2]
[323545354,1714080657411,-1737.92,0.00011506,2]
[323545355,1714080657420,-1303.57,0.00011506,2]
[323545356,1714080657430,-795.74,0.00011506,2]
[323545357,1714080657575,-3277.12,0.00011506,2]
[323545358,1714080657585,-500.0,0.00011506,2]
[323545359,1714080657597,-1859.25,0.00011506,2]
[323545360,1714080657607,-983.89,0.00011506,2]
[323545361,1714080657616,-540.52,0.00011506,2]
[323545362,1714080657626,-500.0,0.00011506,2]
[323545363,1714080657636,-555.98,0.00011506,2]
[323545364,1714080657646,-866.96,0.00011518,2]
[323545365,1714080657656,-1028.08197429,0.00011544,2]
[323545366,1714080657666,-21141.0314,0.00011604,2]
[323545367,1714080657676,-9250.43733269,0.00011605,2]
[323545368,1714080657686,-150.0,0.00011618,2]
[323545369,1714080657697,-150.0,0.00011622,2]
[323545370,1714080657707,-150.0,0.00011622,2]
[323545371,1714080657715,-150.0,0.00011625,2]
[323545372,1714080657724,-150.0,0.00011627,2]
[323545373,1714080657734,-150.0,0.00011634,2]
[323545374,1714080657743,-150.0,0.00011635,2]
[323545375,1714080657752,-150.0,0.00011638,2]
[323545376,1714080657762,-150.0,0.00011638,2]
[323545377,1714080657771,-150.0,0.00011641,2]
[323545378,1714080657780,-150.0,0.00011644,2]
[323545379,1714080657789,-150.0,0.00011651,2]
[323545380,1714080657799,-150.0,0.00011654,2]
[323545381,1714080657809,-150.0,0.00011654,2]
[323545382,1714080657818,-150.0,0.00011664,2]
[323545383,1714080657827,-150.0,0.00011664,2]
[323545384,1714080657837,-150.0,0.00011664,2]
[323545385,1714080657846,-150.0,0.00011669,2]
[323545386,1714080657855,-150.0,0.00011671,2]
[323545387,1714080657864,-150.0,0.00011671,2]
[323545388,1714080657874,-150.0,0.00011672,2]
[323545389,1714080657883,-150.0,0.00011673,2]
[323545390,1714080657892,-150.0,0.00011673,2]
[323545391,1714080657901,-150.0,0.00011674,2]
[323545392,1714080657910,-150.0,0.00011678,2]
[323545393,1714080657919,-500.0,0.00011679,2]
[323545394,1714080657929,-245000.0,0.0001168,2]
[323545395,1714080657938,-150.0,0.0001168,2]
[323545396,1714080657947,-431.76522686,0.0001168,2]
[323545397,1714080657956,-183.97237666,0.0001168,2]
[323545398,1714080657965,-425.5820212,0.0001168,2]
[323545399,1714080657974,-150.0,0.00011684,2]
[323545400,1714080657983,-150.0,0.00011686,2]
[323545401,1714080657993,-150.0,0.00011689,2]
[323545402,1714080658001,-150.0,0.00011691,2]
[323545403,1714080658011,-150.0,0.00011693,2]
[323545404,1714080658020,-150.0,0.00011693,2]
[323545405,1714080658029,-150.0,0.00011694,2]
[323545406,1714080658038,-150.0,0.00011702,2]
[323545407,1714080658048,-9250.43733269,0.00011705,2]
[323545408,1714080658057,-150.0,0.00011706,2]
[323545409,1714080658066,-150.0,0.00011709,2]
[323545410,1714080658074,-150.0,0.00011714,2]
[323545411,1714080658084,-150.0,0.00011716,2]
[323545412,1714080658093,-150.0,0.00011721,2]
[323545413,1714080658102,-150.0,0.00011731,2]
[323545414,1714080658112,-150.0,0.00011734,2]
[323545415,1714080658121,-150.0,0.00011734,2]
[323545416,1714080658130,-150.0,0.00011739,2]
[323545417,1714080658140,-150.0,0.00011739,2]
[323545418,1714080658149,-150.0,0.00011741,2]
[323545419,1714080658159,-150.0,0.00011743,2]
[323545420,1714080658169,-150.0,0.00011747,2]
[323545421,1714080658178,-150.0,0.00011753,2]
[323545422,1714080658188,-150.0,0.00011753,2]
[323545423,1714080658197,-150.0,0.00011755,2]
[323545424,1714080658207,-150.0,0.0001176,2]
[323545425,1714080658216,-150.0,0.0001176,2]
[323545426,1714080658226,-150.0,0.00011763,2]
[323545427,1714080658235,-150.0,0.00011763,2]
[323545428,1714080658245,-150.0,0.00011764,2]
[323545429,1714080658254,-150.0,0.00011768,2]
[323545430,1714080658263,-150.0,0.00011768,2]
[323545431,1714080658272,-576.46,0.00011779,2]
[323545432,1714080658282,-500.0,0.00011779,2]
[323545433,1714080658291,-1193.78,0.0001178,2]
[323545434,1714080658302,-1181.38,0.0001178,2]
[323545435,1714080658311,-500.0,0.0001178,2]
[323545436,1714080658320,-500.0,0.0001178,2]
[323545437,1714080658330,-500.0,0.0001178,2]
[323545438,1714080658339,-500.0,0.0001178,2]
[323545439,1714080658349,-500.0,0.0001178,2]
[323545440,1714080658358,-1233.89,0.0001178,2]
[323545441,1714080658368,-500.0,0.0001178,2]
[323545442,1714080658377,-1207.27,0.0001178,2]
[323545443,1714080658386,-500.0,0.0001178,2]
[323545444,1714080658396,-500.0,0.0001178,2]
[323545445,1714080658406,-500.0,0.0001178,2]
[323545446,1714080658415,-500.0,0.0001178,2]
[323545447,1714080658425,-500.0,0.0001178,2]
[323545448,1714080658434,-442.87206556,0.0001178,2]
[323545449,1714080658443,-500.0,0.0001178,2]
[323545450,1714080658453,-500.0,0.0001178,2]
[323545451,1714080658462,-500.0,0.0001178,2]
[323545452,1714080658472,-221.70240603,0.0001178,2]
[323545453,1714080658481,-517.036415,0.0001178,2]
[323545454,1714080658490,-500.0,0.0001178,2]
[323545455,1714080658499,-500.0,0.0001178,2]
[323545456,1714080658510,-651.15,0.0001178,2]
[323545457,1714080658522,-500.0,0.0001178,2]
[323545458,1714080658531,-500.0,0.0001178,2]
[323545459,1714080658541,-1061.56,0.0001178,2]
[323545460,1714080658550,-1329.59,0.0001178,2]
[323545461,1714080658560,-1320.34,0.0001178,2]
[323545462,1714080658569,-500.0,0.0001178,2]
[323545463,1714080658579,-500.0,0.0001178,2]
[323545464,1714080658589,-293.22089135,0.0001178,2]
[323545465,1714080658598,-500.0,0.0001178,2]
[323545466,1714080658607,-500.0,0.0001178,2]
[323545467,1714080658617,-500.0,0.0001178,2]
[323545468,1714080658627,-1297.11,0.0001178,2]
[323545469,1714080658636,-1228.53,0.0001178,2]
[323545470,1714080658646,-500.0,0.0001178,2]
[323545471,1714080658655,-500.0,0.0001178,2]
[323545472,1714080658664,-500.0,0.0001178,2]
[323545473,1714080658674,-500.0,0.0001178,2]
[323545474,1714080658684,-500.0,0.0001178,2]
[323545475,1714080658693,-500.0,0.0001178,2]
[323545476,1714080658703,-500.0,0.0001178,2]
[323545477,1714080658711,-500.0,0.0001178,2]
[323545478,1714080658721,-500.0,0.0001178,2]
[323545479,1714080658730,-500.0,0.0001178,2]
[323545480,1714080658740,-500.0,0.0001178,2]
[323545481,1714080658749,-500.0,0.0001178,2]
[323545482,1714080658759,-500.0,0.0001178,2]
[323545483,1714080658768,-519.36931453,0.0001178,2]
[323545484,1714080658777,-500.0,0.0001178,2]
[323545485,1714080658787,-500.0,0.0001178,2]
[323545486,1714080658796,-500.0,0.0001178,2]
[323545487,1714080658807,-1365.75,0.0001178,2]
[323545488,1714080658817,-1169.91,0.0001178,2]
[323545489,1714080658826,-500.0,0.0001178,2]
[323545490,1714080658835,-500.0,0.0001178,2]
[323545491,1714080658844,-500.0,0.0001178,2]
[323545492,1714080658861,-558.40602367,0.0001178,2]
[323545493,1714080658875,-500.0,0.0001178,2]
[323545494,1714080658884,-500.0,0.0001178,2]
[323545495,1714080658894,-500.0,0.0001178,2]
[323545496,1714080658904,-554.96,0.0001178,2]
[323545497,1714080658914,-530.35698914,0.0001178,2]
[323545498,1714080658924,-707.07,0.0001178,2]
[323545499,1714080658934,-500.0,0.0001178,2]
[323545500,1714080658943,-464.98,0.0001178,2]
[323545501,1714080658953,-2475.92,0.0001178,2]
[323545502,1714080658963,-1059.5,0.0001178,2]
[323545503,1714080658973,-525.94,0.0001178,2]
[323545504,1714080658983,-1285.93,0.0001178,2]
[323545505,1714080658993,-500.0,0.0001178,2]
[323545506,1714080659002,-720.83,0.0001178,2]
[323545507,1714080659012,-500.0,0.0001178,2]
[323545508,1714080659022,-500.0,0.0001178,2]
[323545509,1714080659033,-500.0,0.0001178,2]
[323545510,1714080659042,-980.09,0.0001178,2]
[323545511,1714080659052,-660.63,0.0001178,2]
[323545512,1714080659062,-500.0,0.0001178,2]
[323545513,1714080659071,-1585.97,0.0001178,2]
[323545514,1714080659081,-500.0,0.0001178,2]
[323545515,1714080659091,-500.0,0.0001178,2]
[323545516,1714080659100,-571.58,0.0001178,2]
[323545517,1714080659110,-500.0,0.0001178,2]
[323545518,1714080659119,-500.0,0.0001178,2]
[323545519,1714080659129,-1418.95,0.0001178,2]
[323545520,1714080659138,-500.0,0.0001178,2]
[323545521,1714080659148,-500.0,0.0001178,2]
[323545522,1714080659157,-500.0,0.0001178,2]
[323545523,1714080659167,-521.57,0.0001178,2]
[323545524,1714080659176,-1325.54,0.0001178,2]
[323545525,1714080659185,-500.0,0.0001178,2]
[323545526,1714080659195,-500.0,0.0001178,2]
[323545527,1714080659204,-500.0,0.0001178,2]
[323545528,1714080659213,-500.0,0.0001178,2]
[323545529,1714080659223,-500.0,0.0001178,2]
[323545530,1714080659232,-500.0,0.0001178,2]
[323545531,1714080659241,-500.0,0.0001178,2]
[323545532,1714080659251,-500.0,0.0001178,2]
[323545533,1714080659260,-500.0,0.0001178,2]
[323545534,1714080659269,-1164.66,0.0001178,2]
[323545535,1714080659279,-540.93,0.0001178,2]
[323545536,1714080659289,-1311.39,0.0001178,2]
[323545537,1714080659298,-1005.63,0.0001178,2]
[323545538,1714080659307,-619.56,0.0001178,2]
[323545539,1714080659317,-500.0,0.0001178,2]
[323545540,1714080659326,-500.0,0.0001178,2]
[323545541,1714080659336,-500.0,0.0001178,2]
[323545542,1714080659346,-500.0,0.0001178,2]
[323545543,1714080659355,-500.0,0.0001178,2]
[323545544,1714080659364,-1213.04,0.0001178,2]
[323545545,1714080659373,-500.0,0.0001178,2]
[323545546,1714080659382,-500.0,0.0001178,2]
[323545547,1714080659392,-500.0,0.0001178,2]
[323545548,1714080659402,-500.0,0.0001178,2]
[323545549,1714080659411,-378.03525951,0.0001178,2]
[323545550,1714080659421,-901.52,0.0001178,2]
[323545551,1714080659430,-500.0,0.0001178,2]
[323545552,1714080659439,-500.0,0.0001178,2]
[323545553,1714080659449,-500.0,0.0001178,2]
[323545554,1714080659458,-525.94,0.0001178,2]
[323545555,1714080659468,-379.31489807,0.0001178,2]
[323545556,1714080659478,-500.0,0.0001178,2]
[323545557,1714080659486,-185.47347427,0.0001178,2]
[323545558,1714080659496,-500.0,0.0001178,2]
[323545559,1714080659505,-500.0,0.0001178,2]
[323545560,1714080659516,-1182.76,0.0001178,2]
[323545561,1714080659526,-603.53,0.0001178,2]
[323545562,1714080659535,-294.86471631,0.0001178,2]
[323545563,1714080659545,-500.0,0.0001178,2]
[323545564,1714080659555,-500.0,0.0001178,2]
[323545565,1714080659565,-500.0,0.0001178,2]
[323545566,1714080659574,-1996.25,0.0001178,2]
[323545567,1714080659584,-500.0,0.0001178,2]
[323545568,1714080659594,-500.0,0.0001178,2]
[323545569,1714080659604,-500.0,0.0001178,2]
[323545570,1714080659614,-525.78,0.0001178,2]
[323545571,1714080659623,-1476.4,0.0001178,2]
[323545572,1714080659633,-500.0,0.0001178,2]
[323545573,1714080659643,-500.0,0.0001178,2]
[323545574,1714080659653,-500.0,0.0001178,2]
[323545575,1714080659663,-620.2,0.0001178,2]
[323545576,1714080659673,-500.0,0.0001178,2]
[323545577,1714080659682,-589.36,0.0001178,2]
[323545578,1714080659692,-301.36192118,0.0001178,2]
[323545579,1714080659701,-880.43,0.0001178,2]
[323545580,1714080659885,-500.0,0.0001178,2]
[323545581,1714080659894,-675.03,0.0001178,2]
[323545582,1714080659904,-500.0,0.0001178,2]
[323545583,1714080659913,-580.55,0.0001178,2]
[323545584,1714080659922,-1103.98,0.0001178,2]
[323545585,1714080659932,-500.0,0.0001178,2]
[323545586,1714080659941,-1165.81,0.0001178,2]
[323545587,1714080659951,-519.76,0.0001178,2]
[323545588,1714080659961,-1249.78,0.0001178,2]
[323545589,1714080659970,-500.0,0.0001178,2]
[323545590,1714080659980,-500.0,0.0001178,2]
[323545591,1714080659989,-500.0,0.0001178,2]
[323545592,1714080659998,-500.0,0.0001178,2]
[323545593,1714080660008,-500.0,0.0001178,2]
[323545594,1714080660018,-500.0,0.0001178,2]
[323545595,1714080660027,-500.0,0.0001178,2]
[323545596,1714080660036,-500.0,0.0001178,2]
[323545597,1714080660046,-1098.48,0.0001178,2]
[323545598,1714080660057,-500.0,0.0001178,2]
[323545599,1714080660066,-500.0,0.0001178,2]
[323545600,1714080660076,-500.0,0.0001178,2]
[323545601,1714080660086,-500.0,0.0001178,2]
[323545602,1714080660095,-625.46,0.0001178,2]
[323545603,1714080660104,-150.0,0.0001178,2]
[323545604,1714080660114,-500.0,0.0001178,2]
[323545605,1714080660124,-500.0,0.0001178,2]
[323545606,1714080660133,-500.0,0.0001178,2]
[323545607,1714080660143,-500.0,0.0001178,2]
[323545608,1714080660153,-500.0,0.0001178,2]
[323545609,1714080660163,-500.0,0.0001178,2]
[323545610,1714080660172,-500.0,0.0001178,2]
[323545611,1714080660182,-557.05,0.0001178,2]
[323545612,1714080660192,-1315.36,0.0001178,2]
[323545613,1714080660201,-610.41643198,0.0001178,2]
[323545614,1714080660211,-500.0,0.0001178,2]
[323545615,1714080660221,-500.0,0.0001178,2]
[323545616,1714080660230,-500.0,0.0001178,2]
[323545617,1714080660239,-500.0,0.0001178,2]
[323545618,1714080660249,-500.0,0.0001178,2]
[323545619,1714080660259,-862.83,0.0001178,2]
[323545620,1714080660269,-500.0,0.0001178,2]
[323545621,1714080660278,-500.0,0.0001178,2]
[323545622,1714080660287,-718.25,0.0001178,2]
[323545623,1714080660296,-500.0,0.0001178,2]
[323545624,1714080660306,-500.0,0.0001178,2]
[323545625,1714080660315,-500.0,0.0001178,2]
[323545626,1714080660324,-500.0,0.0001178,2]
[323545627,1714080660334,-500.0,0.0001178,2]
[323545628,1714080660343,-500.0,0.0001178,2]
[323545629,1714080660353,-500.0,0.0001178,2]
[323545630,1714080660362,-500.0,0.0001178,2]
[323545631,1714080660372,-500.0,0.0001178,2]
[323545632,1714080660382,-500.0,0.0001178,2]
[323545633,1714080660392,-500.0,0.0001178,2]
[323545634,1714080660403,-500.0,0.0001178,2]
[323545635,1714080660412,-579.86977983,0.0001178,2]
[323545636,1714080660421,-500.0,0.0001178,2]
[323545637,1714080660431,-500.0,0.0001178,2]
[323545638,1714080660441,-500.0,0.0001178,2]
[323545639,1714080660451,-543.08,0.0001178,2]
[323545640,1714080660460,-500.0,0.0001178,2]
[323545641,1714080660470,-527.37,0.0001178,2]
[323545642,1714080660480,-500.0,0.0001178,2]
[323545643,1714080660490,-500.0,0.0001178,2]
[323545644,1714080660501,-500.0,0.0001178,2]
[323545645,1714080660511,-500.0,0.0001178,2]
[323545646,1714080660524,-544.68,0.0001178,2]
[323545647,1714080660534,-500.0,0.0001178,2]
[323545648,1714080660543,-3829.47,0.0001178,2]
[323545649,1714080660554,-500.0,0.0001178,2]
[323545650,1714080660564,-500.0,0.0001178,2]
[323545651,1714080660573,-500.0,0.0001178,2]
[323545652,1714080660584,-559.82,0.0001178,2]
[323545653,1714080660594,-769.83,0.0001178,2]
[323545654,1714080660604,-500.0,0.0001178,2]
[323545655,1714080660613,-500.0,0.0001178,2]
[323545656,1714080660624,-500.0,0.0001178,2]
[323545657,1714080660633,-21849.76,0.0001178,2]